[Event "Live Chess"]
[Site "Chess.com"]
[Date "2024.06.02"]
[Round "-"]
[White "Plato_77"]
[Black "booktrunk"]
[Result "0-1"]
[WhiteElo "1311"]
[BlackElo "1503"]
[TimeControl "300"]
[EndTime "6:51:32 PDT"]
[Termination "booktrunk won by checkmate"]

1. d4 {[%clk 0:04:59.5]} 1... d5 {[%clk 0:04:55.9]} 2. Bf4 {[%clk 0:04:58.6]}
2... Nc6 {[%clk 0:04:54.2]} 3. e3 {[%clk 0:04:57.5]} 3... Nf6 {[%clk 0:04:52.1]}
4. Nf3 {[%clk 0:04:56.3]} 4... h6 {[%clk 0:04:50.4]} 5. h3 {[%clk 0:04:53]} 5...
Ne4 {[%clk 0:04:47.3]} 6. Nbd2 {[%clk 0:04:50.8]} 6... Nxd2 {[%clk 0:04:45.5]}
7. Qxd2 {[%clk 0:04:50.7]} 7... e6 {[%clk 0:04:44.4]} 8. Bb5 {[%clk 0:04:32.5]}
8... Bd7 {[%clk 0:04:40.2]} 9. Qe2 {[%clk 0:04:22.2]} 9... a6 {[%clk 0:04:37.6]}
10. Ba4 {[%clk 0:04:19.6]} 10... b5 {[%clk 0:04:35.3]} 11. Bb3 {[%clk 0:04:13]}
11... Na5 {[%clk 0:04:33.6]} 12. O-O {[%clk 0:04:10]} 12... Nxb3 {[%clk
0:04:31.6]} 13. axb3 {[%clk 0:04:07.5]} 13... Bc6 {[%clk 0:04:29]} 14. Ne5
{[%clk 0:04:03.8]} 14... Bb7 {[%clk 0:04:25]} 15. c4 {[%clk 0:03:44.1]} 15...
dxc4 {[%clk 0:04:20.4]} 16. bxc4 {[%clk 0:03:44]} 16... bxc4 {[%clk 0:04:18.9]}
17. Qxc4 {[%clk 0:03:37.2]} 17... Bd5 {[%clk 0:04:15.5]} 18. Qa4+ {[%clk
0:03:28.5]} 18... c6 {[%clk 0:04:11.1]} 19. Nxc6 {[%clk 0:03:17.6]} 19... Qd7
{[%clk 0:04:06.9]} 20. Ne5 {[%clk 0:03:12.9]} 20... Qxa4 {[%clk 0:04:05.1]} 21.
Rxa4 {[%clk 0:03:12.8]} 21... g5 {[%clk 0:04:00.3]} 22. Bh2 {[%clk 0:03:09]}
22... Be7 {[%clk 0:03:56.1]} 23. Rc1 {[%clk 0:03:03.7]} 23... O-O {[%clk
0:03:53.6]} 24. Rc7 {[%clk 0:03:00.9]} 24... Bd6 {[%clk 0:03:50.5]} 25. Rd7
{[%clk 0:02:34.9]} 25... Bxe5 {[%clk 0:03:47.9]} 26. Bxe5 {[%clk 0:02:33.3]}
26... Bc6 {[%clk 0:03:46.2]} 27. Rxa6 {[%clk 0:02:25.2]} 27... Rxa6 {[%clk
0:03:42.9]} 28. Rd6 {[%clk 0:02:24.5]} 28... Bb7 {[%clk 0:03:40.1]} 29. Rd7
{[%clk 0:02:20.1]} 29... Bc8 {[%clk 0:03:35.7]} 30. Rc7 {[%clk 0:02:14.6]} 30...
Rb6 {[%clk 0:03:26]} 31. Rc2 {[%clk 0:02:00.3]} 31... Ba6 {[%clk 0:03:24.3]} 32.
Kh2 {[%clk 0:01:58.5]} 32... Bd3 {[%clk 0:03:22.7]} 33. Rd2 {[%clk 0:01:56.8]}
33... Bc4 {[%clk 0:03:15.4]} 34. Bf6 {[%clk 0:01:48.1]} 34... Kh7 {[%clk
0:03:11.4]} 35. Be7 {[%clk 0:01:46.6]} 35... Re8 {[%clk 0:03:06.8]} 36. Bc5
{[%clk 0:01:45.1]} 36... Rb3 {[%clk 0:03:00.2]} 37. Rc2 {[%clk 0:01:41]} 37...
Bd5 {[%clk 0:02:58.3]} 38. Kg3 {[%clk 0:01:34.8]} 38... Kg6 {[%clk 0:02:56.6]}
39. Ba3 {[%clk 0:01:26.5]} 39... h5 {[%clk 0:02:51.5]} 40. Rc3 {[%clk
0:01:23.4]} 40... Rxc3 {[%clk 0:02:48.6]} 41. bxc3 {[%clk 0:01:23.3]} 41... h4+
{[%clk 0:02:45.9]} 42. Kg4 {[%clk 0:01:18.9]} 42... Bxg2 {[%clk 0:02:39.9]} 43.
f4 {[%clk 0:01:12.5]} 43... f5# {[%clk 0:02:36.4]} 0-1

[Event "Live Chess"]
[Site "Chess.com"]
[Date "2024.06.02"]
[Round "-"]
[White "TheSmoulderingMaster"]
[Black "Larchikov"]
[Result "0-1"]
[WhiteElo "1769"]
[BlackElo "2054"]
[TimeControl "300"]
[EndTime "6:52:24 PDT"]
[Termination "Larchikov won by checkmate"]

1. e4 {[%clk 0:04:57]} 1... e5 {[%clk 0:04:57.2]} 2. Nf3 {[%clk 0:04:55.7]} 2...
Nc6 {[%clk 0:04:56.6]} 3. Bb5 {[%clk 0:04:54]} 3... Bc5 {[%clk 0:04:54.8]} 4.
O-O {[%clk 0:04:52.1]} 4... Nf6 {[%clk 0:04:53.6]} 5. c3 {[%clk 0:04:51.3]} 5...
a6 {[%clk 0:04:49.5]} 6. Ba4 {[%clk 0:04:49.8]} 6... b5 {[%clk 0:04:48.6]} 7.
Bc2 {[%clk 0:04:48.8]} 7... O-O {[%clk 0:04:45.9]} 8. d4 {[%clk 0:04:46.8]} 8...
Bb6 {[%clk 0:04:40.3]} 9. Bg5 {[%clk 0:04:44.3]} 9... h6 {[%clk 0:04:38.1]} 10.
Bh4 {[%clk 0:04:43.1]} 10... d6 {[%clk 0:04:32.7]} 11. dxe5 {[%clk 0:04:39.7]}
11... dxe5 {[%clk 0:04:28.6]} 12. Qe2 {[%clk 0:04:37]} 12... Bg4 {[%clk
0:04:26]} 13. h3 {[%clk 0:04:35.1]} 13... Bh5 {[%clk 0:04:23.6]} 14. Nbd2 {[%clk
0:04:26.5]} 14... Qe7 {[%clk 0:03:53.2]} 15. Rfe1 {[%clk 0:04:16.3]} 15... Nd8
{[%clk 0:03:40.6]} 16. Nf1 {[%clk 0:04:13]} 16... Ne6 {[%clk 0:03:36.8]} 17. Ng3
{[%clk 0:04:10.7]} 17... Nf4 {[%clk 0:03:33.7]} 18. Qf1 {[%clk 0:03:54.1]} 18...
Nxh3+ {[%clk 0:03:28.7]} 19. Kh2 {[%clk 0:03:49.6]} 19... Nxf2 {[%clk 0:03:25]}
20. Nxh5 {[%clk 0:03:46]} 20... N2g4+ {[%clk 0:02:52.9]} 21. Kg3 {[%clk
0:03:43.1]} 21... Nxh5+ {[%clk 0:02:50.1]} 22. Kxg4 {[%clk 0:03:40.8]} 22...
Qe6+ {[%clk 0:02:39.9]} 23. Kxh5 {[%clk 0:03:35.7]} 23... g6+ {[%clk 0:02:31.8]}
24. Kxh6 {[%clk 0:03:34.3]} 24... g5+ {[%clk 0:02:30.7]} 25. Kxg5 {[%clk
0:03:33.1]} 25... Qg6# {[%clk 0:02:29.8]} 0-1

[Event "Live Chess"]
[Site "Chess.com"]
[Date "2024.06.02"]
[Round "-"]
[White "DylanMeyer1"]
[Black "Nazar-Makarchuk"]
[Result "1-0"]
[WhiteElo "1715"]
[BlackElo "1484"]
[TimeControl "300"]
[EndTime "6:52:24 PDT"]
[Termination "DylanMeyer1 won by resignation"]

1. c4 {[%clk 0:04:58.5]} 1... d5 {[%clk 0:04:56.4]} 2. Nc3 {[%clk 0:04:58]} 2...
dxc4 {[%clk 0:04:52.7]} 3. e3 {[%clk 0:04:56.8]} 3... Nf6 {[%clk 0:04:51.2]} 4.
g3 {[%clk 0:04:55.9]} 4... Nc6 {[%clk 0:04:49]} 5. Bxc4 {[%clk 0:04:54.5]} 5...
e5 {[%clk 0:04:48.3]} 6. Bf1 {[%clk 0:04:48.5]} 6... Bg4 {[%clk 0:04:46.8]} 7.
Nge2 {[%clk 0:04:46.1]} 7... Nd5 {[%clk 0:04:43.4]} 8. Bg2 {[%clk 0:04:44.3]}
8... Nxc3 {[%clk 0:04:42.2]} 9. bxc3 {[%clk 0:04:44.2]} 9... Bxe2 {[%clk
0:04:40.7]} 10. Qxe2 {[%clk 0:04:42.2]} 10... Qd6 {[%clk 0:04:37.3]} 11. O-O
{[%clk 0:04:41]} 11... O-O-O {[%clk 0:04:36.7]} 12. d4 {[%clk 0:04:39]} 12...
exd4 {[%clk 0:04:35.3]} 13. exd4 {[%clk 0:04:38.9]} 13... f6 {[%clk 0:04:31.2]}
14. Bf4 {[%clk 0:04:37.8]} 14... Qe7 {[%clk 0:04:30.1]} 15. Qb5 {[%clk
0:04:29.4]} 15... Qd7 {[%clk 0:04:20.8]} 16. Rab1 {[%clk 0:04:27.8]} 16... b6
{[%clk 0:04:01.3]} 17. Bxc6 {[%clk 0:04:24.8]} 17... Qe6 {[%clk 0:03:50.2]} 18.
d5 {[%clk 0:04:20.4]} 18... Qe4 {[%clk 0:03:41.3]} 19. Qa6+ {[%clk 0:04:18.7]}
1-0

[Event "Live Chess"]
[Site "Chess.com"]
[Date "2024.06.02"]
[Round "-"]
[White "grillage"]
[Black "JohanKjeldahl"]
[Result "1-0"]
[WhiteElo "1886"]
[BlackElo "1796"]
[TimeControl "300"]
[EndTime "6:52:34 PDT"]
[Termination "grillage won by checkmate"]

1. d4 {[%clk 0:04:57.4]} 1... Nf6 {[%clk 0:04:58.2]} 2. Nf3 {[%clk 0:04:56]}
2... e6 {[%clk 0:04:56.2]} 3. c4 {[%clk 0:04:54.6]} 3... b6 {[%clk 0:04:55.1]}
4. a3 {[%clk 0:04:50.1]} 4... Bb7 {[%clk 0:04:53.9]} 5. Nc3 {[%clk 0:04:49]}
5... Be7 {[%clk 0:04:53]} 6. d5 {[%clk 0:04:48.4]} 6... O-O {[%clk 0:04:50.7]}
7. g3 {[%clk 0:04:46.6]} 7... d6 {[%clk 0:04:23.3]} 8. Bg2 {[%clk 0:04:44.2]}
8... e5 {[%clk 0:04:22.3]} 9. O-O {[%clk 0:04:40.5]} 9... Nbd7 {[%clk 0:04:21]}
10. Qc2 {[%clk 0:04:36.5]} 10... a5 {[%clk 0:04:19.7]} 11. Bg5 {[%clk
0:04:27.3]} 11... h6 {[%clk 0:04:18.5]} 12. Bxf6 {[%clk 0:04:23.8]} 12... Bxf6
{[%clk 0:04:14.2]} 13. b4 {[%clk 0:04:14]} 13... axb4 {[%clk 0:04:12]} 14. axb4
{[%clk 0:04:13.1]} 14... Qe7 {[%clk 0:04:10.8]} 15. Nd2 {[%clk 0:04:02.3]} 15...
g6 {[%clk 0:03:50]} 16. Nde4 {[%clk 0:03:57.8]} 16... Bg7 {[%clk 0:03:45.8]} 17.
Nb5 {[%clk 0:03:56.3]} 17... f5 {[%clk 0:03:39.4]} 18. Rxa8 {[%clk 0:03:51.1]}
18... Rxa8 {[%clk 0:03:37.1]} 19. Nec3 {[%clk 0:03:34.7]} 19... Nf6 {[%clk
0:03:34.4]} 20. e4 {[%clk 0:03:11.8]} 20... f4 {[%clk 0:03:24.8]} 21. Bh3 {[%clk
0:03:04.9]} 21... g5 {[%clk 0:03:22.4]} 22. Be6+ {[%clk 0:03:02.8]} 22... Kh7
{[%clk 0:03:20.1]} 23. Qb2 {[%clk 0:02:48.9]} 23... Bc8 {[%clk 0:03:17.2]} 24.
Bxc8 {[%clk 0:02:44.5]} 24... Rxc8 {[%clk 0:03:16]} 25. Ra1 {[%clk 0:02:43.2]}
25... f3 {[%clk 0:03:12.3]} 26. Qc1 {[%clk 0:02:32.7]} 26... Qd7 {[%clk
0:03:02.5]} 27. Ra7 {[%clk 0:02:28.4]} 27... Qg4 {[%clk 0:02:54.8]} 28. Qe3
{[%clk 0:02:24.4]} 28... Ne8 {[%clk 0:02:47]} 29. Nb1 {[%clk 0:02:13.9]} 29...
Qh5 {[%clk 0:02:39]} 30. Qe1 {[%clk 0:01:49.2]} 30... g4 {[%clk 0:02:35.1]} 31.
Nd2 {[%clk 0:01:42]} 31... Qg5 {[%clk 0:02:26.9]} 32. h3 {[%clk 0:01:31.7]}
32... h5 {[%clk 0:02:24.6]} 33. h4 {[%clk 0:01:29.9]} 33... Qg6 {[%clk
0:02:20.2]} 34. Nf1 {[%clk 0:01:28.5]} 34... Bh6 {[%clk 0:02:18.7]} 35. Qb1
{[%clk 0:01:08.6]} 35... Qf7 {[%clk 0:02:04.1]} 36. Qd3 {[%clk 0:01:06]} 36...
Kg6 {[%clk 0:01:45.5]} 37. Ne3 {[%clk 0:01:04.6]} 37... Bxe3 {[%clk 0:01:43.2]}
38. Qxe3 {[%clk 0:01:03.4]} 38... Qf6 {[%clk 0:01:41.5]} 39. Qa3 {[%clk
0:00:55.2]} 39... Qd8 {[%clk 0:01:34.3]} 40. Rb7 {[%clk 0:00:46.8]} 40... Ra8
{[%clk 0:01:28.2]} 41. Ra7 {[%clk 0:00:41.6]} 41... Rc8 {[%clk 0:01:21.5]} 42.
Qa6 {[%clk 0:00:39]} 42... Kf6 {[%clk 0:01:15.1]} 43. Qa1 {[%clk 0:00:34.3]}
43... Kg6 {[%clk 0:01:10.2]} 44. Qc1 {[%clk 0:00:33.1]} 44... c6 {[%clk
0:00:57.3]} 45. dxc6 {[%clk 0:00:23.3]} 45... Rxc6 {[%clk 0:00:55]} 46. Qd2
{[%clk 0:00:17.9]} 46... Rxc4 {[%clk 0:00:50.7]} 47. Qd5 {[%clk 0:00:17.4]}
47... Rc1+ {[%clk 0:00:46]} 48. Kh2 {[%clk 0:00:16.9]} 48... Qf6 {[%clk
0:00:44.2]} 49. Qg8+ {[%clk 0:00:15.5]} 49... Ng7 {[%clk 0:00:41.3]} 50. Nxd6
{[%clk 0:00:11]} 50... Rf1 {[%clk 0:00:36.1]} 51. Nf5 {[%clk 0:00:08.2]} 51...
Rxf2+ {[%clk 0:00:33.4]} 52. Kg1 {[%clk 0:00:07.1]} 52... Rg2+ {[%clk 0:00:30]}
53. Kf1 {[%clk 0:00:06.4]} 53... Rc2 {[%clk 0:00:16.6]} 54. Rxg7+ {[%clk
0:00:05.9]} 54... Qxg7 {[%clk 0:00:12.5]} 55. Qxg7# {[%clk 0:00:05.4]} 1-0

[Event "Live Chess"]
[Site "Chess.com"]
[Date "2024.06.02"]
[Round "-"]
[White "Inglaterra"]
[Black "GEMdzq"]
[Result "0-1"]
[WhiteElo "2061"]
[BlackElo "2295"]
[TimeControl "300"]
[EndTime "6:52:45 PDT"]
[Termination "GEMdzq won by resignation"]

1. e4 {[%clk 0:04:55.1]} 1... Nf6 {[%clk 0:04:58.3]} 2. Nc3 {[%clk 0:04:48.7]}
2... e6 {[%clk 0:04:56.1]} 3. Nf3 {[%clk 0:04:46]} 3... c5 {[%clk 0:04:52.9]} 4.
d4 {[%clk 0:04:42.3]} 4... cxd4 {[%clk 0:04:51.5]} 5. Nxd4 {[%clk 0:04:42.2]}
5... Nc6 {[%clk 0:04:45.9]} 6. Be3 {[%clk 0:04:38.2]} 6... a6 {[%clk 0:04:44.8]}
7. Be2 {[%clk 0:04:35.5]} 7... Qc7 {[%clk 0:04:44]} 8. O-O {[%clk 0:04:31.6]}
8... d6 {[%clk 0:04:38.1]} 9. Qd2 {[%clk 0:04:03.9]} 9... Be7 {[%clk 0:04:34.9]}
10. Rad1 {[%clk 0:04:01.5]} 10... O-O {[%clk 0:04:32.4]} 11. f4 {[%clk
0:03:58.1]} 11... Bd7 {[%clk 0:04:26.2]} 12. Bf3 {[%clk 0:03:56]} 12... Rac8
{[%clk 0:04:23.7]} 13. Qf2 {[%clk 0:03:47.6]} 13... e5 {[%clk 0:04:12.5]} 14.
Nb3 {[%clk 0:03:16]} 14... Nb4 {[%clk 0:04:00.3]} 15. a3 {[%clk 0:02:38.1]}
15... Nc6 {[%clk 0:03:58.5]} 16. h3 {[%clk 0:02:32.9]} 16... exf4 {[%clk
0:03:52.9]} 17. Bxf4 {[%clk 0:02:30]} 17... Ne5 {[%clk 0:03:52.2]} 18. Nd2
{[%clk 0:01:52.7]} 18... b5 {[%clk 0:03:40.3]} 19. Rfe1 {[%clk 0:01:31]} 19...
a5 {[%clk 0:03:38.1]} 20. Bxe5 {[%clk 0:01:19.5]} 20... dxe5 {[%clk 0:03:36.2]}
21. Kh1 {[%clk 0:01:15.8]} 21... b4 {[%clk 0:03:34.9]} 22. axb4 {[%clk
0:01:12.7]} 22... axb4 {[%clk 0:03:34.8]} 23. Nd5 {[%clk 0:01:11.3]} 23... Nxd5
{[%clk 0:03:28.9]} 24. exd5 {[%clk 0:01:11.2]} 24... Qxc2 {[%clk 0:03:24.4]} 25.
Rxe5 {[%clk 0:00:58.8]} 25... Bf6 {[%clk 0:03:20.6]} 26. Ree1 {[%clk 0:00:55.9]}
26... Qxb2 {[%clk 0:03:15.9]} 27. Qa7 {[%clk 0:00:47.4]} 27... Ba4 {[%clk
0:03:08.3]} 28. Qxa4 {[%clk 0:00:44.8]} 28... Bc3 {[%clk 0:03:03.6]} 29. Re2
{[%clk 0:00:37.4]} 29... Ra8 {[%clk 0:03:02.4]} 30. Qb3 {[%clk 0:00:36.1]} 30...
Ra2 {[%clk 0:02:53.6]} 31. Qxb2 {[%clk 0:00:34.2]} 31... Rxb2 {[%clk 0:02:53.5]}
32. Ne4 {[%clk 0:00:32.9]} 32... Rxe2 {[%clk 0:02:35.4]} 33. Bxe2 {[%clk
0:00:32]} 33... Be5 {[%clk 0:02:34.8]} 34. Rb1 {[%clk 0:00:30.3]} 34... f5
{[%clk 0:02:33.5]} 35. Nc5 {[%clk 0:00:28.9]} 35... Rc8 {[%clk 0:02:30.4]} 36.
Ne6 {[%clk 0:00:26.8]} 36... Rc2 {[%clk 0:02:28.6]} 37. Bd3 {[%clk 0:00:25]}
37... Rd2 {[%clk 0:02:27.3]} 38. Bxf5 {[%clk 0:00:24.2]} 38... g6 {[%clk
0:02:24.6]} 39. Bg4 {[%clk 0:00:23.4]} 39... b3 {[%clk 0:02:23.6]} 40. Bf3
{[%clk 0:00:21.8]} 40... b2 {[%clk 0:02:22.2]} 41. Kg1 {[%clk 0:00:21]} 41...
Rc2 {[%clk 0:02:19.2]} 42. Be4 {[%clk 0:00:17.9]} 42... Re2 {[%clk 0:02:16.9]}
43. Kf1 {[%clk 0:00:17.2]} 43... Rxe4 {[%clk 0:02:15]} 44. d6 {[%clk 0:00:15.1]}
44... Bxd6 {[%clk 0:02:12]} 45. Rxb2 {[%clk 0:00:13.5]} 45... Rxe6 {[%clk
0:02:11.1]} 0-1

[Event "Live Chess"]
[Site "Chess.com"]
[Date "2024.06.02"]
[Round "-"]
[White "Mikhail_Golubev"]
[Black "LL220284LL"]
[Result "1-0"]
[WhiteElo "2489"]
[BlackElo "2473"]
[TimeControl "300"]
[EndTime "6:52:50 PDT"]
[Termination "Mikhail_Golubev won by resignation"]

1. e4 {[%clk 0:04:56.2]} 1... c6 {[%clk 0:04:57.2]} 2. Nf3 {[%clk 0:04:54.4]}
2... g6 {[%clk 0:04:56.3]} 3. d4 {[%clk 0:04:51.1]} 3... Bg7 {[%clk 0:04:55.7]}
4. Nc3 {[%clk 0:04:49.3]} 4... d6 {[%clk 0:04:55.2]} 5. h3 {[%clk 0:04:43.6]}
5... Nd7 {[%clk 0:04:53.3]} 6. a4 {[%clk 0:04:41.7]} 6... Qc7 {[%clk 0:04:50.3]}
7. Be3 {[%clk 0:04:38.1]} 7... Ngf6 {[%clk 0:04:49.8]} 8. Nd2 {[%clk 0:04:34.7]}
8... O-O {[%clk 0:04:48.1]} 9. Be2 {[%clk 0:04:25.2]} 9... e5 {[%clk 0:04:46.8]}
10. dxe5 {[%clk 0:04:23.9]} 10... dxe5 {[%clk 0:04:44.2]} 11. Nc4 {[%clk
0:04:22.7]} 11... Nb6 {[%clk 0:04:32.1]} 12. Qd6 {[%clk 0:04:12.2]} 12... Qxd6
{[%clk 0:04:18.6]} 13. Nxd6 {[%clk 0:04:12.1]} 13... Rd8 {[%clk 0:04:17.7]} 14.
O-O-O {[%clk 0:03:57.6]} 14... Ne8 {[%clk 0:04:04.5]} 15. Nxc8 {[%clk
0:03:29.3]} 15... Raxc8 {[%clk 0:03:56.7]} 16. a5 {[%clk 0:03:22.3]} 16... Na8
{[%clk 0:03:50.9]} 17. Bg4 {[%clk 0:03:05.8]} 17... Rxd1+ {[%clk 0:03:22]} 18.
Rxd1 {[%clk 0:03:02.6]} 18... f5 {[%clk 0:03:21.1]} 19. exf5 {[%clk 0:02:56.1]}
19... Nf6 {[%clk 0:03:19.7]} 20. fxg6 {[%clk 0:02:52.4]} 20... Nxg4 {[%clk
0:03:18.7]} 21. gxh7+ {[%clk 0:02:51]} 21... Kxh7 {[%clk 0:03:18.6]} 22. hxg4
{[%clk 0:02:50.2]} 22... Nc7 {[%clk 0:03:14.3]} 23. Rd7 {[%clk 0:02:40.9]} 23...
Ne6 {[%clk 0:03:10.1]} 24. Ne4 {[%clk 0:02:32.3]} 24... Kg6 {[%clk 0:03:04.5]}
25. Rxb7 {[%clk 0:02:23.5]} 25... Rh8 {[%clk 0:03:01.3]} 26. Rxa7 {[%clk
0:02:16.9]} 26... Rh2 {[%clk 0:02:59.5]} 27. a6 {[%clk 0:02:11.5]} 27... Rxg2
{[%clk 0:02:58.3]} 28. Rd7 {[%clk 0:02:10.1]} 28... Rg1+ {[%clk 0:02:56.2]} 29.
Rd1 {[%clk 0:02:08.2]} 29... Rxg4 {[%clk 0:02:54.8]} 30. a7 {[%clk 0:02:00.7]}
30... Nc7 {[%clk 0:02:53.8]} 31. Rd6+ {[%clk 0:01:50.6]} 31... Kh7 {[%clk
0:02:49.4]} 32. Rxc6 {[%clk 0:01:49.1]} 32... Rxe4 {[%clk 0:02:48]} 33. Rxc7
{[%clk 0:01:44.9]} 33... Ra4 {[%clk 0:02:47.2]} 34. b4 {[%clk 0:01:34.7]} 34...
Kg6 {[%clk 0:02:44.5]} 35. b5 {[%clk 0:01:33.6]} 35... e4 {[%clk 0:02:43.4]} 36.
Rxg7+ {[%clk 0:01:29]} 36... Kxg7 {[%clk 0:02:42.2]} 37. b6 {[%clk 0:01:28.3]}
1-0

[Event "Live Chess"]
[Site "Chess.com"]
[Date "2024.06.02"]
[Round "-"]
[White "uselessduffer"]
[Black "AndrewBak1"]
[Result "1-0"]
[WhiteElo "2353"]
[BlackElo "1875"]
[TimeControl "300"]
[EndTime "6:53:32 PDT"]
[Termination "uselessduffer won by checkmate"]

1. e4 {[%clk 0:04:56.2]} 1... c5 {[%clk 0:04:58.2]} 2. Nc3 {[%clk 0:04:54.7]}
2... Nc6 {[%clk 0:04:57.5]} 3. Bb5 {[%clk 0:04:53.6]} 3... Nd4 {[%clk 0:04:56]}
4. Nf3 {[%clk 0:04:52.8]} 4... Nxb5 {[%clk 0:04:54.4]} 5. Nxb5 {[%clk
0:04:52.7]} 5... a6 {[%clk 0:04:49.3]} 6. Nc3 {[%clk 0:04:51]} 6... b5 {[%clk
0:04:48.9]} 7. d4 {[%clk 0:04:49.6]} 7... cxd4 {[%clk 0:04:46.9]} 8. Qxd4 {[%clk
0:04:49.5]} 8... Bb7 {[%clk 0:04:45.5]} 9. Bg5 {[%clk 0:04:40]} 9... d6 {[%clk
0:04:35]} 10. O-O-O {[%clk 0:04:34.2]} 10... Qa5 {[%clk 0:04:26.5]} 11. e5
{[%clk 0:04:02.7]} 11... Rd8 {[%clk 0:03:52.6]} 12. Rhe1 {[%clk 0:03:36.8]}
12... b4 {[%clk 0:03:33.7]} 13. exd6 {[%clk 0:03:17.3]} 13... bxc3 {[%clk
0:03:20.2]} 14. d7+ {[%clk 0:03:15.7]} 14... Rxd7 {[%clk 0:03:15.1]} 15. Qxd7#
{[%clk 0:03:15.6]} 1-0

[Event "Live Chess"]
[Site "Chess.com"]
[Date "2024.06.02"]
[Round "-"]
[White "Mangoalo"]
[Black "Larchikov"]
[Result "0-1"]
[WhiteElo "1068"]
[BlackElo "2054"]
[TimeControl "300"]
[EndTime "6:53:33 PDT"]
[Termination "Larchikov won by resignation"]

1. c4 {[%clk 0:04:55.7]} 1... Nf6 {[%clk 0:04:57.5]} 2. Nc3 {[%clk 0:04:54.8]}
2... c6 {[%clk 0:04:56.2]} 3. d4 {[%clk 0:04:54.1]} 3... d5 {[%clk 0:04:55.1]}
4. cxd5 {[%clk 0:04:52.8]} 4... cxd5 {[%clk 0:04:52.3]} 5. Bg5 {[%clk 0:04:52]}
5... Nc6 {[%clk 0:04:51.4]} 6. f4 {[%clk 0:04:47.5]} 6... Bf5 {[%clk 0:04:46.2]}
7. Nf3 {[%clk 0:04:44.8]} 7... e6 {[%clk 0:04:44.8]} 8. g3 {[%clk 0:04:38.1]}
8... Qb6 {[%clk 0:04:43.2]} 9. b3 {[%clk 0:04:31.1]} 9... Bb4 {[%clk 0:04:40.7]}
10. Qd2 {[%clk 0:04:29.6]} 10... Ne4 {[%clk 0:04:39.5]} 11. Nxe4 {[%clk
0:04:22.1]} 0-1

[Event "Live Chess"]
[Site "Chess.com"]
[Date "2024.06.02"]
[Round "-"]
[White "NottheBishopSacrifice"]
[Black "Harry_Li"]
[Result "1-0"]
[WhiteElo "2331"]
[BlackElo "2113"]
[TimeControl "300"]
[EndTime "6:53:36 PDT"]
[Termination "NottheBishopSacrifice won on time"]

1. d4 {[%clk 0:04:57.5]} 1... d5 {[%clk 0:04:59]} 2. Nf3 {[%clk 0:04:57.1]} 2...
c5 {[%clk 0:04:58]} 3. c4 {[%clk 0:04:55.6]} 3... e6 {[%clk 0:04:57.3]} 4. cxd5
{[%clk 0:04:54.4]} 4... exd5 {[%clk 0:04:56.9]} 5. Nc3 {[%clk 0:04:54]} 5... Nf6
{[%clk 0:04:56.4]} 6. Bg5 {[%clk 0:04:52.8]} 6... Be6 {[%clk 0:04:55.9]} 7. e3
{[%clk 0:04:51.2]} 7... c4 {[%clk 0:04:55.1]} 8. Ne5 {[%clk 0:04:48.5]} 8... Qa5
{[%clk 0:04:47.9]} 9. Bxf6 {[%clk 0:04:45.5]} 9... gxf6 {[%clk 0:04:47.8]} 10.
Nf3 {[%clk 0:04:42.4]} 10... Bb4 {[%clk 0:04:46.1]} 11. Qc2 {[%clk 0:04:40.9]}
11... Nc6 {[%clk 0:04:31.9]} 12. Be2 {[%clk 0:04:38.5]} 12... b5 {[%clk
0:04:17.6]} 13. O-O {[%clk 0:04:36.1]} 13... O-O {[%clk 0:03:58.2]} 14. a3
{[%clk 0:04:31.1]} 14... Bxc3 {[%clk 0:03:56.5]} 15. bxc3 {[%clk 0:04:29.7]}
15... Qc7 {[%clk 0:03:30.9]} 16. e4 {[%clk 0:04:27.5]} 16... a5 {[%clk
0:03:24.6]} 17. exd5 {[%clk 0:04:22.1]} 17... Bxd5 {[%clk 0:03:24.5]} 18. Qf5
{[%clk 0:04:21]} 18... Qd6 {[%clk 0:03:17.2]} 19. Bd1 {[%clk 0:04:15]} 19... Ne7
{[%clk 0:03:09.9]} 20. Qh5 {[%clk 0:04:08.2]} 20... Be4 {[%clk 0:02:42.4]} 21.
Qg4+ {[%clk 0:04:04.1]} 21... Bg6 {[%clk 0:02:40.9]} 22. Nd2 {[%clk 0:03:49.8]}
22... Nd5 {[%clk 0:02:22.3]} 23. Bf3 {[%clk 0:03:44.3]} 23... Rab8 {[%clk
0:02:00]} 24. Rac1 {[%clk 0:03:37.4]} 24... Rfd8 {[%clk 0:01:36.8]} 25. a4
{[%clk 0:03:27.3]} 25... Qf4 {[%clk 0:00:58.4]} 26. Qxf4 {[%clk 0:03:19.7]}
26... Nxf4 {[%clk 0:00:58.3]} 27. axb5 {[%clk 0:03:18.7]} 27... Bd3 {[%clk
0:00:57.8]} 28. Rfe1 {[%clk 0:03:14.1]} 28... Rxb5 {[%clk 0:00:56.1]} 29. g3
{[%clk 0:03:12.3]} 29... Nh3+ {[%clk 0:00:41.1]} 30. Kg2 {[%clk 0:03:10.7]}
30... Ng5 {[%clk 0:00:40.7]} 31. Be2 {[%clk 0:03:07.7]} 31... Rb2 {[%clk
0:00:37.6]} 32. Bxd3 {[%clk 0:03:02.6]} 32... cxd3 {[%clk 0:00:37.5]} 33. Red1
{[%clk 0:03:00.9]} 33... Re8 {[%clk 0:00:30.9]} 34. Nc4 {[%clk 0:02:58.8]} 34...
Ra2 {[%clk 0:00:23.1]} 35. Rxd3 {[%clk 0:02:57.7]} 35... Ree2 {[%clk 0:00:22.1]}
36. Rf1 {[%clk 0:02:52]} 36... Ne4 {[%clk 0:00:19.7]} 37. Rf3 {[%clk 0:02:47.3]}
37... Rac2 {[%clk 0:00:14.3]} 38. Nxa5 {[%clk 0:02:41.5]} 38... Nd2 {[%clk
0:00:12.1]} 39. Rxf6 {[%clk 0:02:32.5]} 39... Nxf1 {[%clk 0:00:10.9]} 40. Kxf1
{[%clk 0:02:32]} 40... Red2 {[%clk 0:00:10]} 41. Rf3 {[%clk 0:02:28.8]} 41...
Rd1+ {[%clk 0:00:09.1]} 42. Kg2 {[%clk 0:02:28]} 42... Ra1 {[%clk 0:00:08.1]}
43. Nb3 {[%clk 0:02:26.2]} 43... Ra3 {[%clk 0:00:06.8]} 44. Nc5 {[%clk
0:02:22.4]} 44... Rcxc3 {[%clk 0:00:06.4]} 45. Rxc3 {[%clk 0:02:18]} 45... Rxc3
{[%clk 0:00:06.3]} 46. Ne4 {[%clk 0:02:15.5]} 46... Rc4 {[%clk 0:00:05.3]} 47.
Nf6+ {[%clk 0:02:14.3]} 47... Kg7 {[%clk 0:00:04.9]} 48. Ng4 {[%clk 0:02:13.2]}
48... Rxd4 {[%clk 0:00:04.1]} 49. Ne3 {[%clk 0:02:12.9]} 49... Re4 {[%clk
0:00:03.4]} 50. Nf5+ {[%clk 0:02:11.7]} 50... Kf6 {[%clk 0:00:02.9]} 51. Ne3
{[%clk 0:02:11.2]} 51... Re8 {[%clk 0:00:02.4]} 52. Kf3 {[%clk 0:02:09.8]} 52...
h5 {[%clk 0:00:02.3]} 53. h4 {[%clk 0:02:08.4]} 53... Kg6 {[%clk 0:00:01.3]} 54.
Ng2 {[%clk 0:02:06.8]} 54... f5 {[%clk 0:00:01.2]} 55. Nf4+ {[%clk 0:02:06.2]}
55... Kh6 {[%clk 0:00:00.6]} 56. Nh3 {[%clk 0:02:04.9]} 56... Rb8 {[%clk
0:00:00.5]} 57. Ng5 {[%clk 0:02:03.6]} 57... Rb3+ {[%clk 0:00:00.4]} 58. Kg2
{[%clk 0:02:02.3]} 58... Rb4 {[%clk 0:00:00.3]} 59. Nf3 {[%clk 0:01:59.4]} 59...
f4 {[%clk 0:00:00.2]} 60. gxf4 {[%clk 0:01:57.6]} 60... Rxf4 {[%clk 0:00:00.1]}
61. Kg3 {[%clk 0:01:55.9]} 1-0